fUSD/lending_fUSD_20240814
["ID","MTS","AMOUNT","RATE_DAILY","PERIOD"]
[334942088,1723663851803,-500.0,0.00013698,2]
[334942089,1723663851812,-500.0,0.00013698,2]
[334942090,1723663851822,-500.0,0.00013698,2]
[334942091,1723663851832,-500.0,0.00013698,2]
[334942092,1723663851841,-563.0,0.00013698,2]
[334942093,1723663851850,-500.0,0.00013698,2]
[334942094,1723663851860,-500.0,0.00013698,2]
[334942095,1723663851871,-515.6,0.00013698,2]
[334942096,1723663851881,-500.0,0.00013698,2]
[334942097,1723663851890,-500.0,0.00013698,2]
[334942098,1723663851899,-500.0,0.00013698,2]
[334942099,1723663851907,-500.0,0.00013698,2]
[334942100,1723663851917,-500.0,0.00013698,2]
[334942101,1723663851926,-500.0,0.00013698,2]
[334942102,1723663851936,-595.01,0.00013698,2]
[334942103,1723663851945,-609.82,0.00013698,2]
[334942104,1723663851954,-500.0,0.00013698,2]
[334942105,1723663851963,-500.0,0.00013698,2]
[334942106,1723663851972,-500.0,0.00013698,2]
[334942107,1723663851982,-500.0,0.00013698,2]
[334942108,1723663851991,-500.0,0.00013698,2]
[334942109,1723663852000,-500.0,0.00013698,2]
[334942110,1723663852009,-500.0,0.00013698,2]
[334942111,1723663852018,-500.0,0.00013698,2]
[334942112,1723663852027,-500.0,0.00013698,2]
[334942113,1723663852036,-500.0,0.00013698,2]
[334942114,1723663852045,-500.0,0.00013698,2]
[334942115,1723663852055,-500.0,0.00013698,2]
[334942116,1723663852064,-500.0,0.00013698,2]
[334942117,1723663852073,-523.30470827,0.00013698,2]
[334942118,1723663852082,-500.0,0.00013698,2]
[334942119,1723663852092,-150.0,0.00013698,2]
[334942120,1723663852101,-500.0,0.00013698,2]
[334942121,1723663852110,-500.0,0.00013698,2]
[334942122,1723663852120,-500.0,0.00013698,2]
[334942123,1723663852129,-500.0,0.00013698,2]
[334942124,1723663852138,-500.0,0.00013698,2]
[334942125,1723663852148,-614.82,0.00013698,2]
[334942126,1723663852157,-500.0,0.00013698,2]
[334942127,1723663852166,-500.0,0.00013698,2]
[334942128,1723663852176,-500.0,0.00013698,2]
[334942129,1723663852185,-500.0,0.00013698,2]
[334942130,1723663852194,-500.0,0.00013698,2]
[334942131,1723663852203,-500.0,0.00013698,2]
[334942132,1723663852212,-500.0,0.00013698,2]
[334942133,1723663852222,-500.0,0.00013698,2]
[334942134,1723663852231,-500.0,0.00013698,2]
[334942135,1723663852240,-500.0,0.00013698,2]
[334942136,1723663852249,-500.0,0.00013698,2]
[334942137,1723663852259,-500.0,0.00013698,2]
[334942138,1723663852269,-505.71,0.00013698,2]
[334942139,1723663852279,-500.0,0.00013698,2]
[334942140,1723663852289,-543.28,0.00013698,2]
[334942141,1723663852298,-500.0,0.00013698,2]
[334942142,1723663852308,-500.0,0.00013698,2]
[334942143,1723663852317,-500.0,0.00013698,2]
[334942144,1723663852327,-500.0,0.00013698,2]
[334942145,1723663852336,-500.0,0.00013698,2]
[334942146,1723663852346,-500.0,0.00013698,2]
[334942147,1723663852355,-500.0,0.00013698,2]
[334942148,1723663852365,-500.0,0.00013698,2]
[334942149,1723663852376,-560.3,0.00013698,2]
[334942150,1723663852386,-500.0,0.00013698,2]
[334942151,1723663852395,-500.0,0.00013698,2]
[334942152,1723663852448,-500.0,0.00013698,2]
[334942153,1723663852458,-531.57,0.00013698,2]
[334942154,1723663852468,-500.0,0.00013698,2]
[334942155,1723663852477,-500.0,0.00013698,2]
[334942156,1723663852487,-500.0,0.00013698,2]
[334942157,1723663852496,-500.0,0.00013698,2]
[334942158,1723663852505,-500.0,0.00013698,2]
[334942159,1723663852515,-500.0,0.00013698,2]
[334942160,1723663852528,-500.0,0.00013698,2]
[334942161,1723663852538,-500.0,0.00013698,2]
[334942162,1723663852547,-500.0,0.00013698,2]
[334942163,1723663852557,-500.0,0.00013698,2]
[334942164,1723663852566,-500.0,0.00013698,2]
[334942165,1723663852576,-500.0,0.00013698,2]
[334942166,1723663852585,-500.0,0.00013698,2]
[334942167,1723663852595,-500.0,0.00013698,2]
[334942168,1723663852604,-500.0,0.00013698,2]
[334942169,1723663852613,-500.0,0.00013698,2]
[334942170,1723663852623,-618.38,0.00013698,2]
[334942171,1723663852633,-500.0,0.00013698,2]
[334942172,1723663852642,-504.13,0.00013698,2]
[334942173,1723663852652,-500.0,0.00013698,2]
[334942174,1723663852662,-500.0,0.00013698,2]
[334942175,1723663852671,-500.0,0.00013698,2]
[334942176,1723663852681,-500.0,0.00013698,2]
[334942177,1723663852691,-500.0,0.00013698,2]
[334942178,1723663852701,-500.0,0.00013698,2]
[334942179,1723663852710,-500.0,0.00013698,2]
[334942180,1723663852720,-500.0,0.00013698,2]
[334942181,1723663852729,-500.0,0.00013698,2]
[334942182,1723663852739,-500.0,0.00013698,2]
[334942183,1723663852748,-500.0,0.00013698,2]
[334942184,1723663852758,-500.0,0.00013698,2]
[334942185,1723663852768,-500.0,0.00013698,2]
[334942186,1723663852777,-500.0,0.00013698,2]
[334942187,1723663852786,-3747.06,0.00013698,2]
[334942188,1723663852795,-500.0,0.00013698,2]
[334942189,1723663852804,-500.0,0.00013698,2]
[334942190,1723663852813,-500.0,0.00013698,2]
[334942191,1723663852823,-500.0,0.00013698,2]
[334942192,1723663852832,-500.0,0.00013698,2]
[334942193,1723663852842,-526.97,0.00013698,2]
[334942194,1723663852852,-500.0,0.00013698,2]
[334942195,1723663852862,-500.0,0.00013698,2]
[334942196,1723663852876,-1508.3,0.00013698,2]
[334942197,1723663852886,-500.0,0.00013698,2]
[334942198,1723663852896,-500.0,0.00013698,2]
[334942199,1723663852905,-522.42,0.00013698,2]
[334942200,1723663852915,-500.0,0.00013698,2]
[334942201,1723663852924,-500.0,0.00013698,2]
[334942202,1723663852933,-500.0,0.00013698,2]
[334942203,1723663852943,-1473.45,0.00013698,2]
[334942204,1723663852952,-500.0,0.00013698,2]
[334942205,1723663852962,-500.0,0.00013698,2]
[334942206,1723663852971,-597.57,0.00013698,2]
[334942207,1723663852980,-577.89,0.00013698,2]
[334942208,1723663852990,-500.0,0.00013698,2]
[334942209,1723663852999,-500.0,0.00013698,2]
[334942210,1723663853008,-500.0,0.00013698,2]
[334942211,1723663853017,-500.0,0.00013698,2]
[334942212,1723663853027,-571.82,0.00013698,2]
[334942213,1723663853036,-500.0,0.00013698,2]
[334942214,1723663853045,-500.0,0.00013698,2]
[334942215,1723663853054,-500.0,0.00013698,2]
[334942216,1723663853063,-500.0,0.00013698,2]
[334942217,1723663853071,-506.16,0.00013698,2]
[334942218,1723663853080,-500.0,0.00013698,2]
[334942219,1723663853090,-500.0,0.00013698,2]
[334942220,1723663853100,-500.0,0.00013698,2]
[334942221,1723663853110,-500.0,0.00013698,2]
[334942222,1723663853120,-500.0,0.00013698,2]
[334942223,1723663853129,-500.0,0.00013698,2]
[334942224,1723663853139,-500.0,0.00013698,2]
[334942225,1723663853148,-500.0,0.00013698,2]
[334942226,1723663853158,-574.57,0.00013698,2]
[334942227,1723663853167,-500.0,0.00013698,2]
[334942228,1723663853176,-515.1,0.00013698,2]
[334942229,1723663853186,-605.128821,0.00013698,2]
[334942230,1723663853195,-500.0,0.00013698,2]
[334942231,1723663853204,-517.83,0.00013698,2]
[334942232,1723663853213,-500.0,0.00013698,2]
[334942233,1723663853223,-500.0,0.00013698,2]
[334942234,1723663853233,-500.0,0.00013698,2]
[334942235,1723663853241,-500.0,0.00013698,2]
[334942236,1723663853250,-2295.24,0.00013698,2]
[334942237,1723663853259,-504.65,0.00013698,2]
[334942238,1723663853269,-500.0,0.00013698,2]
[334942239,1723663853278,-500.0,0.00013698,2]
[334942240,1723663853287,-500.0,0.00013698,2]
[334942241,1723663853297,-500.0,0.00013698,2]
[334942242,1723663853306,-500.0,0.00013698,2]
[334942243,1723663853316,-500.0,0.00013698,2]
[334942244,1723663853325,-500.0,0.00013698,2]
[334942245,1723663853335,-500.0,0.00013698,2]
[334942246,1723663853345,-500.0,0.00013698,2]
[334942247,1723663853355,-500.0,0.00013698,2]
[334942248,1723663853364,-500.0,0.00013698,2]
[334942249,1723663853375,-500.0,0.00013698,2]
[334942250,1723663853384,-500.0,0.00013698,2]
[334942251,1723663853394,-757.01,0.00013698,2]
[334942252,1723663853404,-1680.08,0.00013698,2]
[334942253,1723663853414,-500.0,0.00013698,2]
[334942254,1723663853423,-500.0,0.00013698,2]
[334942255,1723663853432,-685.4,0.00013698,2]
[334942256,1723663853442,-500.0,0.00013698,2]
[334942257,1723663853451,-500.0,0.00013698,2]
[334942258,1723663853461,-500.0,0.00013698,2]
[334942259,1723663853471,-500.0,0.00013698,2]
[334942260,1723663853482,-500.0,0.00013698,2]
[334942261,1723663853491,-500.0,0.00013698,2]
[334942262,1723663853500,-500.0,0.00013698,2]
[334942263,1723663853510,-500.0,0.00013698,2]
[334942264,1723663853519,-500.0,0.00013698,2]
[334942265,1723663853531,-500.0,0.00013698,2]
[334942266,1723663853541,-500.0,0.00013698,2]
[334942267,1723663853551,-500.0,0.00013698,2]
[334942268,1723663853560,-500.0,0.00013698,2]
[334942269,1723663853569,-500.0,0.00013698,2]
[334942270,1723663853579,-500.0,0.00013698,2]
[334942271,1723663853589,-500.0,0.00013698,2]
[334942272,1723663853600,-500.0,0.00013698,2]
[334942273,1723663853609,-500.0,0.00013698,2]
[334942274,1723663853619,-500.0,0.00013698,2]
[334942275,1723663853630,-500.0,0.00013698,2]
[334942276,1723663853639,-500.0,0.00013698,2]
[334942277,1723663853648,-500.0,0.00013698,2]
[334942278,1723663853658,-500.0,0.00013698,2]
[334942279,1723663853668,-500.0,0.00013698,2]
[334942280,1723663853678,-500.0,0.00013698,2]
[334942281,1723663853688,-500.0,0.00013698,2]
[334942282,1723663853698,-500.0,0.00013698,2]
[334942283,1723663853708,-487.62,0.00013698,2]
[334942284,1723663853718,-500.0,0.00013698,2]
[334942285,1723663853728,-500.0,0.00013698,2]
[334942286,1723663853738,-811.57,0.00013698,2]
[334942287,1723663853747,-500.0,0.00013698,2]
[334942288,1723663853757,-500.0,0.00013698,2]
[334942289,1723663853767,-500.0,0.00013698,2]
[334942290,1723663853777,-500.0,0.00013698,2]
[334942291,1723663853787,-500.0,0.00013698,2]
[334942292,1723663853797,-500.0,0.00013698,2]
[334942293,1723663853807,-500.0,0.00013698,2]
[334942294,1723663853816,-500.0,0.00013698,2]
[334942295,1723663853828,-359.12243444,0.00013698,2]
[334942296,1723663853838,-203.73387205,0.00013698,2]
[334942297,1723663853847,-500.0,0.00013698,2]
[334942298,1723663853857,-500.0,0.00013698,2]
[334942299,1723663853867,-500.0,0.00013698,2]
[334942300,1723663853879,-500.0,0.00013698,2]
[334942301,1723663853888,-500.0,0.00013698,2]
[334942302,1723663853898,-500.0,0.00013698,2]
[334942303,1723663853908,-500.0,0.00013698,2]
[334942304,1723663853918,-560.98,0.00013698,2]
[334942305,1723663853928,-500.0,0.00013698,2]
[334942306,1723663853938,-500.0,0.00013698,2]
[334942307,1723663853947,-500.0,0.00013698,2]
[334942308,1723663853957,-500.0,0.00013698,2]
[334942309,1723663853967,-500.0,0.00013698,2]
[334942310,1723663853977,-500.0,0.00013698,2]
[334942311,1723663853987,-639.45,0.00013698,2]
[334942312,1723663853997,-254.56636041,0.00013698,2]
[334942313,1723663854007,-500.0,0.00013698,2]
[334942314,1723663854017,-501.73,0.00013698,2]
[334942315,1723663854027,-500.0,0.00013698,2]
[334942316,1723663854037,-649.26,0.00013698,2]
[334942317,1723663854046,-660.5,0.00013698,2]
[334942318,1723663854056,-532.63,0.00013698,2]
[334942319,1723663854066,-500.0,0.00013698,2]
[334942320,1723663854075,-4047.03,0.00013698,2]
[334942321,1723663854085,-500.0,0.00013698,2]
[334942322,1723663854095,-500.0,0.00013698,2]
[334942323,1723663854105,-500.0,0.00013698,2]
[334942324,1723663854115,-500.0,0.00013698,2]
[334942325,1723663854127,-500.0,0.00013698,2]
[334942326,1723663854137,-500.0,0.00013698,2]
[334942327,1723663854147,-500.0,0.00013698,2]
[334942328,1723663854160,-537.59,0.00013698,2]
[334942329,1723663854171,-500.0,0.00013698,2]
[334942330,1723663854181,-500.0,0.00013698,2]
[334942331,1723663854191,-500.0,0.00013698,2]
[334942332,1723663854200,-500.0,0.00013698,2]
[334942333,1723663854210,-500.0,0.00013698,2]
[334942334,1723663854219,-500.0,0.00013698,2]
[334942335,1723663854229,-500.0,0.00013698,2]
[334942336,1723663854239,-500.0,0.00013698,2]
[334942337,1723663854248,-500.0,0.00013698,2]
[334942338,1723663854258,-500.0,0.00013698,2]
[334942339,1723663854268,-1193.38,0.00013698,2]
[334942340,1723663854278,-500.0,0.00013698,2]
[334942341,1723663854289,-500.0,0.00013698,2]
[334942342,1723663854299,-500.0,0.00013698,2]
[334942343,1723663854309,-539.12315578,0.00013698,2]
[334942344,1723663854319,-500.0,0.00013698,2]
[334942345,1723663854328,-500.0,0.00013698,2]
[334942346,1723663854338,-174.4,0.00013699,2]
[334942347,1723663854348,-36643.11,0.000137,2]
[334942348,1723663854358,-8523.76730914,0.00013721,2]
[334942349,1723663854368,-165.14,0.00013735,2]
[334942350,1723663854380,-336.21662671,0.00013799,2]
[334942351,1723663854389,-86193.195565,0.000138,3]
[334942352,1723663854398,-200.66602858,0.00013873,2]
[334942353,1723663854408,-1542.0,0.00013889,2]
[334942354,1723663854419,-150.0,0.00013889,2]
[334942355,1723663854428,-1257.0,0.00013889,2]
[334942356,1723663854438,-5116.295,0.00013889,2]
[334942357,1723663854448,-622.0,0.00013889,2]
[334942358,1723663854458,-1924.0,0.00013889,2]
[334942359,1723663854467,-341396.667072,0.000139,3]
[334942360,1723663854477,-500.0,0.00013915,2]
[334942361,1723663854487,-7707.56018791,0.00013922,2]
[334942362,1723663854496,-2582857.37425451,0.00013972,2]
[334942363,1723663854506,-587.74,0.00013972,2]
[334942364,1723663854516,-238.54,0.00013972,2]
[334942365,1723663854531,-153.29,0.00013972,2]
[334942366,1723663854541,-414.96,0.00013972,2]
[334942367,1723663854551,-253.23,0.00013972,2]
[334942368,1723663854561,-433.62,0.00013972,2]
[334942369,1723663854575,-604.3,0.00013972,2]
[334942370,1723663854584,-3718.96,0.00013972,2]
[334942371,1723663854593,-500.0,0.00013972,2]
[334942372,1723663854605,-500.0,0.00013972,2]
[334942373,1723663854615,-344.31,0.00013972,2]
[334942374,1723663854627,-294.08,0.00013972,2]
[334942375,1723663854637,-548.93,0.00013972,2]
[334942376,1723663854647,-500.0,0.00013972,2]
[334942377,1723663854657,-480.27,0.00013972,2]
[334942378,1723663854667,-467.96,0.00013972,2]
[334942379,1723663854678,-550.39,0.00013972,2]
[334942380,1723663854688,-363.3,0.00013972,2]
[334942381,1723663854698,-500.0,0.00013972,2]
[334942382,1723663854708,-416.83,0.00013972,2]
[334942383,1723663854718,-585.82,0.00013972,2]
[334942384,1723663854729,-337.72,0.00013972,2]
[334942385,1723663854740,-573.38,0.00013972,2]
[334942386,1723663854750,-151.07,0.00013972,2]
[334942387,1723663854760,-500.0,0.00013972,2]
[334942388,1723663854770,-537.24,0.00013972,2]
[334942389,1723663854780,-525.28,0.00013972,2]
[334942390,1723663854790,-500.0,0.00013972,2]
[334942391,1723663854800,-500.0,0.00013972,2]
[334942392,1723663854810,-619.88,0.00013972,2]
[334942393,1723663854819,-500.0,0.00013972,2]
[334942394,1723663854829,-155.03,0.00013972,2]
[334942395,1723663854839,-500.0,0.00013972,2]
[334942396,1723663854849,-337.89,0.00013972,2]
[334942397,1723663854859,-200.51,0.00013972,2]
[334942398,1723663854869,-234.66,0.00013972,2]
[334942399,1723663854883,-451.27,0.00013972,2]
[334942400,1723663854892,-500.0,0.00013972,2]
[334942401,1723663854902,-500.0,0.00013972,2]
[334942402,1723663854912,-500.0,0.00013972,2]
[334942403,1723663854923,-498.75,0.00013972,2]
[334942404,1723663854933,-351.73,0.00013972,2]
[334942405,1723663854943,-500.0,0.00013972,2]
[334942406,1723663854953,-150.0,0.00013972,2]
[334942407,1723663854963,-500.0,0.00013972,2]
[334942408,1723663854973,-500.0,0.00013972,2]
[334942409,1723663854983,-500.0,0.00013972,2]
[334942410,1723663854993,-250.79,0.00013972,2]
[334942411,1723663855002,-574.97,0.00013972,2]
[334942412,1723663855012,-500.0,0.00013972,2]
[334942413,1723663855022,-500.0,0.00013972,2]
[334942414,1723663855032,-248.21,0.00013972,2]
[334942415,1723663855042,-278.56,0.00013972,2]
[334942416,1723663855052,-500.0,0.00013972,2]
[334942417,1723663855061,-263.76,0.00013972,2]
[334942418,1723663855071,-288.27,0.00013972,2]
[334942419,1723663855081,-549.74,0.00013972,2]
[334942420,1723663855091,-500.0,0.00013972,2]
[334942421,1723663855102,-173.85,0.00013972,2]
[334942422,1723663855111,-500.0,0.00013972,2]
[334942423,1723663855121,-579.89,0.00013972,2]
[334942424,1723663855133,-500.0,0.00013972,2]
[334942425,1723663855143,-500.0,0.00013972,2]
[334942426,1723663855153,-500.0,0.00013972,2]
[334942427,1723663855163,-500.0,0.00013972,2]
[334942428,1723663855173,-443.47,0.00013972,2]
[334942429,1723663855183,-500.0,0.00013972,2]
[334942430,1723663855194,-500.0,0.00013972,2]
[334942431,1723663855338,-500.0,0.00013972,2]
[334942432,1723663855357,-508.15,0.00013972,2]
[334942433,1723663855367,-500.0,0.00013972,2]
[334942434,1723663855378,-500.0,0.00013972,2]
[334942435,1723663855389,-500.0,0.00013972,2]
[334942436,1723663855398,-500.0,0.00013972,2]
[334942437,1723663855408,-500.0,0.00013972,2]
[334942438,1723663855418,-500.0,0.00013972,2]
[334942439,1723663855427,-350.07,0.00013972,2]
[334942440,1723663855437,-500.0,0.00013972,2]
[334942441,1723663855446,-500.0,0.00013972,2]
[334942442,1723663855456,-436.58,0.00013972,2]
[334942443,1723663855467,-340.01,0.00013972,2]
[334942444,1723663855476,-500.0,0.00013972,2]
[334942445,1723663855486,-3747.06,0.00013972,2]
[334942446,1723663855496,-503.06,0.00013972,2]
[334942447,1723663855506,-1508.3,0.00013972,2]
[334942448,1723663855515,-286.52,0.00013972,2]
[334942449,1723663855528,-1473.45,0.00013972,2]
[334942450,1723663855537,-500.0,0.00013972,2]
[334942451,1723663855547,-500.0,0.00013972,2]
[334942452,1723663855557,-500.0,0.00013972,2]
[334942453,1723663855568,-500.0,0.00013972,2]
[334942454,1723663855577,-297.14,0.00013972,2]
[334942455,1723663855586,-506.07,0.00013972,2]
[334942456,1723663855596,-500.0,0.00013972,2]
[334942457,1723663855607,-500.0,0.00013972,2]
[334942458,1723663855616,-500.0,0.00013972,2]
[334942459,1723663855629,-500.0,0.00013972,2]
[334942460,1723663855638,-457.89,0.00013972,2]
[334942461,1723663855647,-500.0,0.00013972,2]
[334942462,1723663855657,-2295.24,0.00013972,2]
[334942463,1723663855666,-500.0,0.00013972,2]
[334942464,1723663855676,-500.0,0.00013972,2]
[334942465,1723663855685,-500.0,0.00013972,2]
[334942466,1723663855696,-354.16,0.00013972,2]
[334942467,1723663855705,-500.0,0.00013972,2]
[334942468,1723663855715,-500.0,0.00013972,2]
[334942469,1723663855725,-757.01,0.00013972,2]
[334942470,1723663855734,-1680.08,0.00013972,2]
[334942471,1723663855744,-286.53,0.00013972,2]
[334942472,1723663855754,-685.4,0.00013972,2]
[334942473,1723663855763,-325.9,0.00013972,2]
[334942474,1723663855773,-460.97,0.00013972,2]
[334942475,1723663855783,-500.0,0.00013972,2]
[334942476,1723663855792,-500.0,0.00013972,2]
[334942477,1723663855802,-500.0,0.00013972,2]
[334942478,1723663855811,-500.0,0.00013972,2]
[334942479,1723663855821,-500.0,0.00013972,2]
[334942480,1723663855831,-500.0,0.00013972,2]
[334942481,1723663855840,-389.03,0.00013972,2]
[334942482,1723663855849,-471.45,0.00013972,2]
[334942483,1723663855859,-500.0,0.00013972,2]
[334942484,1723663855868,-471.67,0.00013972,2]
[334942485,1723663855879,-153.89,0.00013972,2]
[334942486,1723663855889,-500.0,0.00013972,2]
[334942487,1723663855898,-500.0,0.00013972,2]
[334942488,1723663855908,-500.0,0.00013972,2]
[334942489,1723663855918,-811.57,0.00013972,2]
[334942490,1723663855928,-500.0,0.00013972,2]
[334942491,1723663855937,-500.0,0.00013972,2]
[334942492,1723663855947,-240.6,0.00013972,2]
[334942493,1723663855956,-500.0,0.00013972,2]
[334942494,1723663855965,-639.57,0.00013972,2]
[334942495,1723663855977,-264.48,0.00013972,2]
[334942496,1723663855987,-500.0,0.00013972,2]
[334942497,1723663855996,-493.45,0.00013972,2]
[334942498,1723663856005,-500.0,0.00013972,2]
[334942499,1723663856014,-568.57,0.00013972,2]
[334942500,1723663856024,-500.0,0.00013972,2]
[334942501,1723663856033,-500.0,0.00013972,2]
[334942502,1723663856043,-495.82014589,0.00013972,2]
[334942503,1723663856053,-660.5,0.00013972,2]
[334942504,1723663856063,-4047.03,0.00013972,2]
[334942505,1723663856072,-280.65,0.00013972,2]
[334942506,1723663856082,-500.0,0.00013972,2]
[334942507,1723663856092,-191.39,0.00013972,2]
[334942508,1723663856102,-500.0,0.00013972,2]
[334942509,1723663856111,-285.14,0.00013972,2]
[334942510,1723663856121,-167.41,0.00013972,2]
[334942511,1723663856133,-300.67,0.00013972,2]
[334942512,1723663856143,-500.0,0.00013972,2]
[334942513,1723663856152,-500.0,0.00013972,2]
[334942514,1723663856161,-155.92,0.00013972,2]
[334942515,1723663856171,-500.0,0.00013972,2]
[334942516,1723663856180,-1193.38,0.00013972,2]
[334942517,1723663856190,-682.13,0.00013973,2]
[334942518,1723663856200,-151.9,0.00013973,2]
[334942519,1723663856209,-1000.0,0.00014,4]
[334942520,1723663856219,-1137.0,0.00014,2]
[334942521,1723663856228,-1888.778,0.00014,2]
[334942522,1723663856237,-435.64,0.00014,2]
[334942523,1723663856247,-1178.0,0.00014,2]
[334942524,1723663856256,-764.0,0.00014,2]
[334942525,1723663856266,-650.0,0.00014,2]
[334942526,1723663856275,-334.141,0.00014,2]
[334942527,1723663856284,-823.0,0.00014227,2]
[334942528,1723663856294,-3718.96,0.00014246,2]
[334942529,1723663856303,-156.43,0.00014246,2]
[334942530,1723663856312,-206.79,0.00014246,2]
[334942531,1723663856322,-207.39,0.00014246,2]
[334942532,1723663856331,-403.09,0.00014246,2]
[334942533,1723663856340,-500.0,0.00014246,2]
[334942534,1723663856349,-459.12,0.00014246,2]
[334942535,1723663856358,-500.0,0.00014246,2]
[334942536,1723663856368,-294.15,0.00014246,2]
[334942537,1723663856379,-500.0,0.00014246,2]
[334942538,1723663856394,-165.21,0.00014246,2]
[334942539,1723663856404,-150.0,0.00014246,2]
[334942540,1723663856414,-306.68,0.00014246,2]
[334942541,1723663856423,-500.0,0.00014246,2]
[334942542,1723663856433,-500.0,0.00014246,2]
[334942543,1723663856442,-418.53,0.00014246,2]
[334942544,1723663856451,-515.02,0.00014246,2]
[334942545,1723663856461,-426.86,0.00014246,2]
[334942546,1723663856470,-541.53,0.00014246,2]
[334942547,1723663856480,-396.98,0.00014246,2]
[334942548,1723663856489,-500.0,0.00014246,2]
[334942549,1723663856498,-500.0,0.00014246,2]
[334942550,1723663856507,-500.0,0.00014246,2]
[334942551,1723663856518,-511.46,0.00014246,2]
[334942552,1723663856537,-342.45,0.00014246,2]
[334942553,1723663856548,-500.0,0.00014246,2]
[334942554,1723663856558,-500.0,0.00014246,2]
[334942555,1723663856567,-500.0,0.00014246,2]
[334942556,1723663856578,-500.0,0.00014246,2]
[334942557,1723663856587,-303.44,0.00014246,2]
[334942558,1723663856598,-398.19,0.00014246,2]
[334942559,1723663856607,-349.79,0.00014246,2]
[334942560,1723663856616,-500.0,0.00014246,2]
[334942561,1723663856628,-500.0,0.00014246,2]
[334942562,1723663856637,-3747.06,0.00014246,2]
[334942563,1723663856647,-1508.3,0.00014246,2]
[334942564,1723663856657,-1473.45,0.00014246,2]
[334942565,1723663856668,-500.0,0.00014246,2]
[334942566,1723663856677,-500.0,0.00014246,2]
[334942567,1723663856685,-201.53,0.00014246,2]
[334942568,1723663856695,-381.66289948,0.00014246,2]
[334942569,1723663856704,-500.0,0.00014246,2]
[334942570,1723663856714,-500.0,0.00014246,2]
[334942571,1723663856725,-500.0,0.00014246,2]
[334942572,1723663856735,-500.0,0.00014246,2]
[334942573,1723663856745,-2295.24,0.00014246,2]
[334942574,1723663856755,-326.06,0.00014246,2]
[334942575,1723663856768,-348.28,0.00014246,2]
[334942576,1723663856781,-510.30823306,0.00014246,2]
[334942577,1723663856790,-500.0,0.00014246,2]
[334942578,1723663856801,-274.99,0.00014246,2]
[334942579,1723663856810,-757.01,0.00014246,2]
[334942580,1723663856820,-1680.08,0.00014246,2]
[334942581,1723663856829,-685.4,0.00014246,2]
[334942582,1723663856841,-205.28,0.00014246,2]
[334942583,1723663856850,-500.0,0.00014246,2]
[334942584,1723663856859,-500.0,0.00014246,2]
[334942585,1723663856868,-389.96096865,0.00014246,2]
[334942586,1723663856879,-500.0,0.00014246,2]
[334942587,1723663856888,-500.0,0.00014246,2]